[Event "Titled Tuesday Blitz August 22 Early 2023"]
[White "Dvirnyy, Danyyil"]
[Black "Xiong, Jeffery"]
[WhiteFideId "817570"]
[BlackFideId "2047640"]
[WhiteElo "2839"]
[BlackElo "2994"]
[Result "0-1"]
[Round "5"]
[TimeControl "180+1"]
[Date "2023.08.22"]
[WhiteClock "0:00:02"]
[BlackClock "0:00:11"]
[Board "16"]

1. b3 {[%clk 0:02:59]}  d5 {[%clk 0:02:59]} 2. Bb2 {[%clk 0:02:59]}  Bf5 {[%clk 0:02:59]} 3. Nf3 {[%clk 0:02:58]}  e6 {[%clk 0:02:59]} 4. g3 {[%clk 0:02:58]}  h6 {[%clk 0:03:00]} 5. Bg2 {[%clk 0:02:59]}  Nf6 {[%clk 0:03:00]} 6. O-O {[%clk 0:02:59]}  Be7 {[%clk 0:03:01]} 7. d3 {[%clk 0:03:00]}  O-O {[%clk 0:03:02]} 8. c4 {[%clk 0:03:01]}  c6 {[%clk 0:03:00]} 9. Nbd2 {[%clk 0:03:01]}  Bh7 {[%clk 0:03:00]} 10. a3 {[%clk 0:03:01]}  a5 {[%clk 0:03:01]} 11. Qc2 {[%clk 0:03:01]}  Na6 {[%clk 0:03:01]} 12. Ne5 {[%clk 0:02:50]}  Nd7 {[%clk 0:02:55]} 13. Nxd7 {[%clk 0:02:50]}  Qxd7 {[%clk 0:02:56]} 14. Nf3 {[%clk 0:02:49]}  Rfd8 {[%clk 0:02:55]} 15. Bc3 {[%clk 0:02:47]}  Nc7 {[%clk 0:02:52]} 16. Qb2 {[%clk 0:02:43]}  Bf8 {[%clk 0:02:51]} 17. b4 {[%clk 0:02:42]}  axb4 {[%clk 0:02:52]} 18. axb4 {[%clk 0:02:42]}  Rxa1 {[%clk 0:02:37]} 19. Rxa1 {[%clk 0:02:42]}  Ra8 {[%clk 0:02:38]} 20. h4 {[%clk 0:02:41]}  Qd8 {[%clk 0:02:31]} 21. Ra5 {[%clk 0:02:35]}  dxc4 {[%clk 0:02:19]} 22. dxc4 {[%clk 0:02:34]}  Be4 {[%clk 0:02:18]} 23. Be5 {[%clk 0:02:26]}  Na6 {[%clk 0:01:31]} 24. c5 {[%clk 0:01:59]}  Qd1+ {[%clk 0:01:29]} 25. Kh2 {[%clk 0:01:59]}  Rd8 {[%clk 0:01:30]} 26. Ra1 {[%clk 0:01:56]}  Qc2 {[%clk 0:01:25]} 27. Qxc2 {[%clk 0:00:45]}  Bxc2 {[%clk 0:01:26]} 28. Rc1 {[%clk 0:00:45]}  Be4 {[%clk 0:00:57]} 29. Bc3 {[%clk 0:00:41]}  Nc7 {[%clk 0:00:57]} 30. Ne5 {[%clk 0:00:38]}  Bxg2 {[%clk 0:00:57]} 31. Kxg2 {[%clk 0:00:39]}  Ra8 {[%clk 0:00:44]} 32. Nc4 {[%clk 0:00:39]}  Be7 {[%clk 0:00:39]} 33. Rd1 {[%clk 0:00:33]}  Nd5 {[%clk 0:00:39]} 34. Be1 {[%clk 0:00:32]}  f5 {[%clk 0:00:39]} 35. Na5 {[%clk 0:00:27]}  Ra7 {[%clk 0:00:26]} 36. Rd3 {[%clk 0:00:27]}  Kf7 {[%clk 0:00:26]} 37. f3 {[%clk 0:00:27]}  Ke8 {[%clk 0:00:25]} 38. e4 {[%clk 0:00:28]}  fxe4 {[%clk 0:00:26]} 39. fxe4 {[%clk 0:00:28]}  Nf6 {[%clk 0:00:27]} 40. Kf3 {[%clk 0:00:29]}  Nd7 {[%clk 0:00:27]} 41. Bc3 {[%clk 0:00:25]}  g6 {[%clk 0:00:20]} 42. e5 {[%clk 0:00:21]}  Bd8 {[%clk 0:00:18]} 43. Nc4 {[%clk 0:00:18]}  Bc7 {[%clk 0:00:19]} 44. Ke4 {[%clk 0:00:18]}  Ra2 {[%clk 0:00:18]} 45. Rf3 {[%clk 0:00:18]}  Re2+ {[%clk 0:00:19]} 46. Kd3 {[%clk 0:00:16]}  Rg2 {[%clk 0:00:19]} 47. Nd6+ {[%clk 0:00:16]}  Bxd6 {[%clk 0:00:18]} 48. exd6 {[%clk 0:00:17]}  b6 {[%clk 0:00:18]} 49. Bd4 {[%clk 0:00:17]}  bxc5 {[%clk 0:00:18]} 50. bxc5 {[%clk 0:00:18]}  e5 {[%clk 0:00:19]} 51. Re3 {[%clk 0:00:18]}  Kf7 {[%clk 0:00:18]} 52. Bxe5 {[%clk 0:00:18]}  Nxc5+ {[%clk 0:00:19]} 53. Kc4 {[%clk 0:00:17]}  Nd7 {[%clk 0:00:20]} 54. Bf4 {[%clk 0:00:16]}  Nb6+ {[%clk 0:00:17]} 55. Kc5 {[%clk 0:00:16]}  Nd5 {[%clk 0:00:18]} 56. Rf3 {[%clk 0:00:16]}  Rc2+ {[%clk 0:00:18]} 57. Kd4 {[%clk 0:00:15]}  Ke6 {[%clk 0:00:19]} 58. Bxh6 {[%clk 0:00:14]}  Kxd6 {[%clk 0:00:19]} 59. Rf8 {[%clk 0:00:11]}  c5+ {[%clk 0:00:19]} 60. Ke4 {[%clk 0:00:12]}  Re2+ {[%clk 0:00:18]} 61. Kf3 {[%clk 0:00:12]}  Re6 {[%clk 0:00:18]} 62. g4 {[%clk 0:00:10]}  c4 {[%clk 0:00:19]} 63. Rc8 {[%clk 0:00:10]}  c3 {[%clk 0:00:19]} 64. Bg7 {[%clk 0:00:10]}  Re3+ {[%clk 0:00:19]} 65. Kf2 {[%clk 0:00:10]}  Rh3 {[%clk 0:00:20]} 66. h5 {[%clk 0:00:09]}  gxh5 {[%clk 0:00:20]} 67. gxh5 {[%clk 0:00:10]}  Rxh5 {[%clk 0:00:14]} 68. Bxc3 {[%clk 0:00:10]}  Kd7 {[%clk 0:00:15]} 69. Rc5 {[%clk 0:00:09]}  Kd6 {[%clk 0:00:15]} 70. Bb4 {[%clk 0:00:09]}  Ke5 {[%clk 0:00:11]} 71. Rc4 {[%clk 0:00:06]}  Rh3 {[%clk 0:00:10]} 72. Ba5 {[%clk 0:00:06]}  Rb3 {[%clk 0:00:09]} 73. Bd2 {[%clk 0:00:05]}  Kf5 {[%clk 0:00:09]} 74. Ke2 {[%clk 0:00:05]}  Nf6 {[%clk 0:00:10]} 75. Rf4+ {[%clk 0:00:05]}  Ke5 {[%clk 0:00:10]} 76. Ra4 {[%clk 0:00:05]}  Ne4 {[%clk 0:00:10]} 77. Ra2 {[%clk 0:00:03]}  Kd4 {[%clk 0:00:10]} 78. Be3+ {[%clk 0:00:03]}  Kd5 {[%clk 0:00:10]} 79. Bd2 {[%clk 0:00:03]}  Kc4 {[%clk 0:00:10]} 80. Rc2+ {[%clk 0:00:03]}  Kd4 {[%clk 0:00:11]} 81. Ra2 {[%clk 0:00:03]}  Rh3 {[%clk 0:00:11]} 82. Ra4+ {[%clk 0:00:04]}  Kd5 {[%clk 0:00:11]} 83. Be3 {[%clk 0:00:02]}  Nc3+ {[%clk 0:00:11]} 0-1


[Site "https://www.chess.com"]

[Event "Titled Tuesday Blitz August 22 Early 2023"]
[White "Kevlishvili, Robby"]
[Black "Yanchenko, Roman"]
[WhiteFideId "1040634"]
[BlackFideId "4137329"]
[WhiteElo "2975"]
[BlackElo "2821"]
[Result "1-0"]
[Round "5"]
[TimeControl "180+1"]
[Date "2023.08.22"]
[WhiteClock "0:00:35"]
[BlackClock "0:00:05"]
[Board "17"]

1. Nf3 {[%clk 0:02:59]}  d5 {[%clk 0:02:58]} 2. g3 {[%clk 0:02:57]}  Nf6 {[%clk 0:02:59]} 3. Bg2 {[%clk 0:02:57]}  Bf5 {[%clk 0:02:59]} 4. O-O {[%clk 0:02:57]}  e6 {[%clk 0:02:59]} 5. d3 {[%clk 0:02:58]}  Be7 {[%clk 0:03:00]} 6. c4 {[%clk 0:02:58]}  c6 {[%clk 0:03:00]} 7. Qb3 {[%clk 0:02:53]}  Qb6 {[%clk 0:03:00]} 8. Be3 {[%clk 0:02:53]}  Qxb3 {[%clk 0:02:59]} 9. axb3 {[%clk 0:02:53]}  a6 {[%clk 0:02:59]} 10. Nc3 {[%clk 0:02:50]}  Nbd7 {[%clk 0:02:59]} 11. Nd4 {[%clk 0:02:45]}  Bg6 {[%clk 0:02:59]} 12. Rfc1 {[%clk 0:02:42]}  O-O {[%clk 0:02:55]} 13. Nf3 {[%clk 0:02:33]}  Nc5 {[%clk 0:02:44]} 14. Nd2 {[%clk 0:02:32]}  Rfd8 {[%clk 0:02:38]} 15. Na4 {[%clk 0:02:06]}  d4 {[%clk 0:02:16]} 16. Bf4 {[%clk 0:02:04]}  Nfd7 {[%clk 0:02:15]} 17. Nxc5 {[%clk 0:01:56]}  Bxc5 {[%clk 0:02:14]} 18. Ne4 {[%clk 0:01:54]}  Bxe4 {[%clk 0:02:06]} 19. Bxe4 {[%clk 0:01:55]}  Bb4 {[%clk 0:02:06]} 20. Bc7 {[%clk 0:01:25]}  Rdc8 {[%clk 0:01:52]} 21. Ba5 {[%clk 0:01:25]}  Bxa5 {[%clk 0:01:51]} 22. Rxa5 {[%clk 0:01:25]}  b6 {[%clk 0:01:51]} 23. Ra3 {[%clk 0:01:25]}  a5 {[%clk 0:01:51]} 24. b4 {[%clk 0:01:16]}  f5 {[%clk 0:01:20]} 25. Bg2 {[%clk 0:01:14]}  Kf7 {[%clk 0:00:27]} 26. Rca1 {[%clk 0:01:09]}  Rab8 {[%clk 0:00:18]} 27. bxa5 {[%clk 0:01:07]}  bxa5 {[%clk 0:00:19]} 28. R1a2 {[%clk 0:01:05]}  Rb6 {[%clk 0:00:19]} 29. Rxa5 {[%clk 0:01:03]}  Rcb8 {[%clk 0:00:20]} 30. Ra7 {[%clk 0:01:02]}  Ke7 {[%clk 0:00:19]} 31. Rc7 {[%clk 0:01:01]}  Kd6 {[%clk 0:00:12]} 32. Raa7 {[%clk 0:01:02]}  Nc5 {[%clk 0:00:13]} 33. Rxg7 {[%clk 0:00:55]}  Rxb2 {[%clk 0:00:13]} 34. Bf3 {[%clk 0:00:50]}  Rb1+ {[%clk 0:00:12]} 35. Kg2 {[%clk 0:00:50]}  R1b7 {[%clk 0:00:13]} 36. Rxh7 {[%clk 0:00:48]}  Rxa7 {[%clk 0:00:11]} 37. Rxa7 {[%clk 0:00:49]}  Rb7 {[%clk 0:00:10]} 38. Rxb7 {[%clk 0:00:45]}  Nxb7 {[%clk 0:00:10]} 39. h4 {[%clk 0:00:45]}  Nd8 {[%clk 0:00:11]} 40. h5 {[%clk 0:00:44]}  Ke7 {[%clk 0:00:11]} 41. Kh3 {[%clk 0:00:44]}  Kf6 {[%clk 0:00:12]} 42. Kh4 {[%clk 0:00:45]}  c5 {[%clk 0:00:12]} 43. e3 {[%clk 0:00:35]}  dxe3 {[%clk 0:00:11]} 44. fxe3 {[%clk 0:00:36]}  e5 {[%clk 0:00:12]} 45. Bd5 {[%clk 0:00:35]}  e4 {[%clk 0:00:05]} 46. dxe4 {[%clk 0:00:35]}  fxe4 {[%clk 0:00:06]} 47. g4 {[%clk 0:00:35]}  Kg7 {[%clk 0:00:04]} 48. g5 {[%clk 0:00:35]}  Kh7 {[%clk 0:00:04]} 49. Kg4 {[%clk 0:00:35]}  Kh8 {[%clk 0:00:05]} 50. Kf5 {[%clk 0:00:35]}  Kg7 {[%clk 0:00:06]} 51. Ke5 {[%clk 0:00:36]}  Nf7+ {[%clk 0:00:05]} 52. Bxf7 {[%clk 0:00:35]} 1-0


[Site "https://www.chess.com"]

[Event "Titled Tuesday Blitz August 22 Early 2023"]
[White "Chigaev, Maksim"]
[Black "Plazuelo Pascual, Juan"]
[WhiteFideId "4108116"]
[BlackFideId "32059566"]
[WhiteElo "2919"]
[BlackElo "2664"]
[Result "0-1"]
[Round "5"]
[TimeControl "180+1"]
[Date "2023.08.22"]
[WhiteClock "0:00:05"]
[BlackClock "0:00:10"]
[Board "21"]

1. Nf3 {[%clk 0:03:00]}  d5 {[%clk 0:02:32]} 2. g3 {[%clk 0:03:00]}  Nc6 {[%clk 0:02:32]} 3. d4 {[%clk 0:02:57]}  Bf5 {[%clk 0:02:31]} 4. Bg2 {[%clk 0:02:58]}  e6 {[%clk 0:02:31]} 5. O-O {[%clk 0:02:56]}  Nb4 {[%clk 0:02:31]} 6. Na3 {[%clk 0:02:56]}  Nc6 {[%clk 0:02:31]} 7. b3 {[%clk 0:02:40]}  h5 {[%clk 0:02:31]} 8. h4 {[%clk 0:02:39]}  Nf6 {[%clk 0:02:31]} 9. c4 {[%clk 0:02:37]}  Ne4 {[%clk 0:02:31]} 10. Nc2 {[%clk 0:02:18]}  Be7 {[%clk 0:02:23]} 11. Ne3 {[%clk 0:02:12]}  Bh7 {[%clk 0:02:15]} 12. cxd5 {[%clk 0:02:07]}  exd5 {[%clk 0:02:16]} 13. Bb2 {[%clk 0:01:41]}  g5 {[%clk 0:02:09]} 14. hxg5 {[%clk 0:01:39]}  Bxg5 {[%clk 0:02:09]} 15. Rc1 {[%clk 0:01:09]}  h4 {[%clk 0:01:59]} 16. Nxg5 {[%clk 0:00:53]}  Qxg5 {[%clk 0:01:56]} 17. Nxd5 {[%clk 0:00:54]}  Qxd5 {[%clk 0:01:47]} 18. Rc5 {[%clk 0:00:54]}  Qd6 {[%clk 0:01:28]} 19. Rh5 {[%clk 0:00:39]}  O-O-O {[%clk 0:00:52]} 20. d5 {[%clk 0:00:39]}  hxg3 {[%clk 0:00:36]} 21. f4 {[%clk 0:00:18]}  Qc5+ {[%clk 0:00:22]} 22. Kh1 {[%clk 0:00:18]}  f6 {[%clk 0:00:13]} 23. Qc1 {[%clk 0:00:13]}  Nf2+ {[%clk 0:00:12]} 24. Rxf2 {[%clk 0:00:05]}  Qxc1+ {[%clk 0:00:11]} 25. Bxc1 {[%clk 0:00:05]}  gxf2 {[%clk 0:00:12]} 26. dxc6 {[%clk 0:00:06]}  Rd1+ {[%clk 0:00:12]} 27. Kh2 {[%clk 0:00:06]}  Rxc1 {[%clk 0:00:10]} 28. cxb7+ {[%clk 0:00:05]}  Kb8 {[%clk 0:00:10]} 0-1


[Site "https://www.chess.com"]

[Event "Titled Tuesday Blitz August 22 Early 2023"]
[White "Naroditsky, Daniel"]
[Black "Henriquez Villagra, Cristobal"]
[WhiteFideId "2026961"]
[BlackFideId "3409350"]
[WhiteElo "3192"]
[BlackElo "2913"]
[Result "1/2-1/2"]
[Round "5"]
[TimeControl "180+1"]
[Date "2023.08.22"]
[WhiteClock "0:00:06"]
[BlackClock "0:00:16"]
[Board "22"]

1. e4 {[%clk 0:03:00]}  d6 {[%clk 0:02:53]} 2. d4 {[%clk 0:02:59]}  Nf6 {[%clk 0:02:54]} 3. Nc3 {[%clk 0:02:59]}  e5 {[%clk 0:02:54]} 4. Nf3 {[%clk 0:02:59]}  Nbd7 {[%clk 0:02:55]} 5. g3 {[%clk 0:02:59]}  Be7 {[%clk 0:02:53]} 6. Bg2 {[%clk 0:02:59]}  O-O {[%clk 0:02:53]} 7. O-O {[%clk 0:03:00]}  c6 {[%clk 0:02:54]} 8. a4 {[%clk 0:03:00]}  Re8 {[%clk 0:02:50]} 9. Re1 {[%clk 0:02:59]}  Bf8 {[%clk 0:02:51]} 10. b3 {[%clk 0:02:59]}  b6 {[%clk 0:02:38]} 11. Bb2 {[%clk 0:02:56]}  Bb7 {[%clk 0:02:36]} 12. Nb1 {[%clk 0:02:05]}  a6 {[%clk 0:02:21]} 13. Nbd2 {[%clk 0:02:05]}  b5 {[%clk 0:02:21]} 14. c4 {[%clk 0:02:02]}  exd4 {[%clk 0:02:08]} 15. Nxd4 {[%clk 0:02:01]}  bxc4 {[%clk 0:02:07]} 16. Nxc4 {[%clk 0:01:57]}  Nc5 {[%clk 0:01:32]} 17. e5 {[%clk 0:01:28]}  dxe5 {[%clk 0:01:20]} 18. Nxe5 {[%clk 0:01:28]}  Qc7 {[%clk 0:01:11]} 19. b4 {[%clk 0:01:18]}  Rxe5 {[%clk 0:01:02]} 20. bxc5 {[%clk 0:01:16]}  Rxc5 {[%clk 0:00:54]} 21. Qb3 {[%clk 0:01:00]}  Rd8 {[%clk 0:00:46]} 22. Rac1 {[%clk 0:00:50]}  Rxc1 {[%clk 0:00:32]} 23. Rxc1 {[%clk 0:00:51]}  c5 {[%clk 0:00:33]} 24. Qxb7 {[%clk 0:00:39]}  Qxb7 {[%clk 0:00:33]} 25. Bxb7 {[%clk 0:00:40]}  Rb8 {[%clk 0:00:33]} 26. Bxa6 {[%clk 0:00:30]}  Rxb2 {[%clk 0:00:33]} 27. Nf5 {[%clk 0:00:24]}  Ra2 {[%clk 0:00:31]} 28. Bb5 {[%clk 0:00:21]}  g6 {[%clk 0:00:31]} 29. Ne3 {[%clk 0:00:21]}  Ne4 {[%clk 0:00:31]} 30. Rc2 {[%clk 0:00:18]}  Ra1+ {[%clk 0:00:20]} 31. Kg2 {[%clk 0:00:19]}  Bg7 {[%clk 0:00:21]} 32. Bc6 {[%clk 0:00:17]}  Nc3 {[%clk 0:00:20]} 33. Nd5 {[%clk 0:00:11]}  Nxd5 {[%clk 0:00:17]} 34. Bxd5 {[%clk 0:00:12]}  Rxa4 {[%clk 0:00:16]} 35. Rxc5 {[%clk 0:00:11]}  Ra7 {[%clk 0:00:16]} 36. Rb5 {[%clk 0:00:08]}  Bf8 {[%clk 0:00:16]} 37. h4 {[%clk 0:00:09]}  h5 {[%clk 0:00:15]} 38. Rb6 {[%clk 0:00:10]}  Kg7 {[%clk 0:00:16]} 39. Rc6 {[%clk 0:00:10]}  Rd7 {[%clk 0:00:16]} 40. Be4 {[%clk 0:00:11]}  Rd6 {[%clk 0:00:16]} 41. Rc7 {[%clk 0:00:10]}  Rf6 {[%clk 0:00:16]} 42. Bd5 {[%clk 0:00:10]}  Rf5 {[%clk 0:00:15]} 43. Rd7 {[%clk 0:00:11]}  Rf6 {[%clk 0:00:16]} 44. f4 {[%clk 0:00:11]}  Rf5 {[%clk 0:00:15]} 45. Kf3 {[%clk 0:00:11]}  Rf6 {[%clk 0:00:15]} 46. Ke4 {[%clk 0:00:08]}  Bb4 {[%clk 0:00:15]} 47. Kf3 {[%clk 0:00:06]}  Bf8 {[%clk 0:00:15]} 48. Rb7 {[%clk 0:00:06]}  Bc5 {[%clk 0:00:15]} 49. Rc7 {[%clk 0:00:05]}  Bd6 {[%clk 0:00:15]} 50. Rd7 {[%clk 0:00:06]}  Bf8 {[%clk 0:00:16]} 1/2-1/2


[Site "https://www.chess.com"]

[Event "Titled Tuesday Blitz August 22 Early 2023"]
[White "Skliarov, Viktor"]
[Black "Le, Tuan Minh"]
[WhiteFideId "14106736"]
[BlackFideId "12401153"]
[WhiteElo "2693"]
[BlackElo "3002"]
[Result "1/2-1/2"]
[Round "5"]
[TimeControl "180+1"]
[Date "2023.08.22"]
[WhiteClock "0:00:05"]
[BlackClock "0:00:18"]
[Board "25"]

1. e4 {[%clk 0:03:00]}  c5 {[%clk 0:02:47]} 2. Nf3 {[%clk 0:03:00]}  Nf6 {[%clk 0:02:45]} 3. e5 {[%clk 0:03:01]}  Nd5 {[%clk 0:02:45]} 4. Nc3 {[%clk 0:03:02]}  e6 {[%clk 0:02:46]} 5. Ne4 {[%clk 0:03:01]}  f5 {[%clk 0:02:46]} 6. Nc3 {[%clk 0:03:01]}  Ne7 {[%clk 0:02:46]} 7. d4 {[%clk 0:02:55]}  cxd4 {[%clk 0:02:46]} 8. Nxd4 {[%clk 0:02:54]}  a6 {[%clk 0:02:46]} 9. f4 {[%clk 0:02:51]}  Nbc6 {[%clk 0:02:44]} 10. Nf3 {[%clk 0:02:43]}  b5 {[%clk 0:02:40]} 11. Be3 {[%clk 0:02:43]}  b4 {[%clk 0:02:38]} 12. Na4 {[%clk 0:02:34]}  Nd5 {[%clk 0:02:38]} 13. Bd2 {[%clk 0:02:29]}  Bb7 {[%clk 0:02:34]} 14. c4 {[%clk 0:02:23]}  bxc3 {[%clk 0:02:31]} 15. Nxc3 {[%clk 0:02:23]}  Nxc3 {[%clk 0:02:24]} 16. Bxc3 {[%clk 0:02:22]}  Bc5 {[%clk 0:02:23]} 17. Qd2 {[%clk 0:02:07]}  Ne7 {[%clk 0:02:17]} 18. Bd4 {[%clk 0:01:53]}  Bxd4 {[%clk 0:02:15]} 19. Qxd4 {[%clk 0:01:51]}  O-O {[%clk 0:02:13]} 20. Be2 {[%clk 0:01:48]}  Rc8 {[%clk 0:02:03]} 21. O-O {[%clk 0:01:45]}  Nd5 {[%clk 0:02:04]} 22. Rac1 {[%clk 0:01:42]}  h6 {[%clk 0:01:50]} 23. Rxc8 {[%clk 0:01:11]}  Qxc8 {[%clk 0:01:51]} 24. Nd2 {[%clk 0:01:10]}  Qc2 {[%clk 0:01:41]} 25. Bd1 {[%clk 0:01:01]}  Qc7 {[%clk 0:01:33]} 26. Nc4 {[%clk 0:00:58]}  Bc6 {[%clk 0:01:28]} 27. Nd6 {[%clk 0:00:56]}  Rb8 {[%clk 0:01:29]} 28. a3 {[%clk 0:00:41]}  Qa5 {[%clk 0:01:04]} 29. Bf3 {[%clk 0:00:34]}  Rb3 {[%clk 0:01:01]} 30. g4 {[%clk 0:00:25]}  Rxf3 {[%clk 0:00:58]} 31. Rxf3 {[%clk 0:00:24]}  Qe1+ {[%clk 0:00:36]} 32. Rf1 {[%clk 0:00:22]}  Qe2 {[%clk 0:00:36]} 33. Rf2 {[%clk 0:00:15]}  Nxf4 {[%clk 0:00:33]} 34. Qxf4 {[%clk 0:00:10]}  Qe1+ {[%clk 0:00:17]} 35. Rf1 {[%clk 0:00:10]}  Qe2 {[%clk 0:00:18]} 36. Rf2 {[%clk 0:00:07]}  Qe1+ {[%clk 0:00:18]} 37. Rf1 {[%clk 0:00:07]}  Qe2 {[%clk 0:00:18]} 38. Rf2 {[%clk 0:00:05]} 1/2-1/2


[Site "https://www.chess.com"]

[Event "Titled Tuesday Blitz August 22 Early 2023"]
[White "Kovalev, Vladislav"]
[Black "Amartuvshin, Ganzorig"]
[WhiteFideId "13504398"]
[BlackFideId "4902548"]
[WhiteElo "2902"]
[BlackElo "2656"]
[Result "1-0"]
[Round "5"]
[TimeControl "180+1"]
[Date "2023.08.22"]
[WhiteClock "0:00:07"]
[BlackClock "0:00:05"]
[Board "33"]

1. e4 {[%clk 0:03:00]}  e5 {[%clk 0:02:57]} 2. Nf3 {[%clk 0:03:01]}  Nf6 {[%clk 0:02:56]} 3. d4 {[%clk 0:02:58]}  exd4 {[%clk 0:02:45]} 4. e5 {[%clk 0:02:55]}  Qe7 {[%clk 0:02:44]} 5. Be2 {[%clk 0:02:48]}  Nd5 {[%clk 0:02:34]} 6. O-O {[%clk 0:02:32]}  Nc6 {[%clk 0:02:33]} 7. Re1 {[%clk 0:02:32]}  g6 {[%clk 0:02:20]} 8. Nxd4 {[%clk 0:02:16]}  Bg7 {[%clk 0:01:28]} 9. Nb5 {[%clk 0:02:00]}  a6 {[%clk 0:01:27]} 10. Nd6+ {[%clk 0:01:59]}  cxd6 {[%clk 0:01:27]} 11. exd6 {[%clk 0:02:00]}  Qxd6 {[%clk 0:01:24]} 12. Bf3+ {[%clk 0:01:56]}  Ne5 {[%clk 0:01:12]} 13. Nc3 {[%clk 0:01:43]}  O-O {[%clk 0:01:09]} 14. Bxd5 {[%clk 0:01:43]}  Qc7 {[%clk 0:01:08]} 15. Bb3 {[%clk 0:01:39]}  d6 {[%clk 0:01:05]} 16. Nd5 {[%clk 0:01:39]}  Qd8 {[%clk 0:01:05]} 17. Be3 {[%clk 0:01:33]}  Be6 {[%clk 0:01:04]} 18. Qd2 {[%clk 0:01:30]}  Rc8 {[%clk 0:01:01]} 19. Bg5 {[%clk 0:01:26]}  Qd7 {[%clk 0:00:41]} 20. Ne7+ {[%clk 0:01:07]}  Kh8 {[%clk 0:00:40]} 21. Nxc8 {[%clk 0:01:08]}  Rxc8 {[%clk 0:00:41]} 22. Rad1 {[%clk 0:01:08]}  Bxb3 {[%clk 0:00:20]} 23. axb3 {[%clk 0:01:09]}  Qf5 {[%clk 0:00:19]} 24. c3 {[%clk 0:01:03]}  Qg4 {[%clk 0:00:19]} 25. Qf4 {[%clk 0:00:53]}  Qe6 {[%clk 0:00:18]} 26. c4 {[%clk 0:00:44]}  h5 {[%clk 0:00:17]} 27. Qe4 {[%clk 0:00:40]}  b5 {[%clk 0:00:16]} 28. f4 {[%clk 0:00:33]}  Nc6 {[%clk 0:00:07]} 29. Qxe6 {[%clk 0:00:29]}  fxe6 {[%clk 0:00:07]} 30. cxb5 {[%clk 0:00:27]}  axb5 {[%clk 0:00:07]} 31. Rxe6 {[%clk 0:00:19]}  Nd4 {[%clk 0:00:06]} 32. Rxd6 {[%clk 0:00:16]}  Nf5 {[%clk 0:00:05]} 33. Rd8+ {[%clk 0:00:16]}  Rxd8 {[%clk 0:00:05]} 34. Rxd8+ {[%clk 0:00:17]}  Kh7 {[%clk 0:00:06]} 35. Rd7 {[%clk 0:00:09]}  Nd4 {[%clk 0:00:06]} 36. Bf6 {[%clk 0:00:06]}  Nf5 {[%clk 0:00:05]} 37. Bxg7 {[%clk 0:00:07]} 1-0


[Site "https://www.chess.com"]

[Event "Titled Tuesday Blitz August 22 Early 2023"]
[White "Tregubov, Pavel V."]
[Black "Rasulov, Vugar"]
[WhiteFideId "4115341"]
[BlackFideId "13402390"]
[WhiteElo "2654"]
[BlackElo "2886"]
[Result "0-1"]
[Round "5"]
[TimeControl "180+1"]
[Date "2023.08.22"]
[WhiteClock "0:00:00"]
[BlackClock "0:00:46"]
[Board "34"]

1. e4 {[%clk 0:03:00]}  c5 {[%clk 0:02:58]} 2. Nf3 {[%clk 0:03:00]}  d6 {[%clk 0:02:59]} 3. Bb5+ {[%clk 0:03:00]}  Nd7 {[%clk 0:02:59]} 4. Ba4 {[%clk 0:03:00]}  Nf6 {[%clk 0:02:57]} 5. O-O {[%clk 0:02:59]}  g6 {[%clk 0:02:56]} 6. Re1 {[%clk 0:02:59]}  Bg7 {[%clk 0:02:57]} 7. c3 {[%clk 0:03:00]}  O-O {[%clk 0:02:57]} 8. d4 {[%clk 0:03:00]}  a6 {[%clk 0:02:51]} 9. h3 {[%clk 0:02:52]}  b5 {[%clk 0:02:47]} 10. Bc2 {[%clk 0:02:51]}  e5 {[%clk 0:02:41]} 11. Nbd2 {[%clk 0:02:43]}  exd4 {[%clk 0:02:31]} 12. cxd4 {[%clk 0:02:42]}  cxd4 {[%clk 0:02:31]} 13. Nxd4 {[%clk 0:02:29]}  Bb7 {[%clk 0:02:32]} 14. N2b3 {[%clk 0:02:04]}  Re8 {[%clk 0:02:29]} 15. f3 {[%clk 0:01:56]}  d5 {[%clk 0:02:27]} 16. Bg5 {[%clk 0:01:35]}  dxe4 {[%clk 0:02:26]} 17. Bxe4 {[%clk 0:01:31]}  Bxe4 {[%clk 0:02:25]} 18. Rxe4 {[%clk 0:01:30]}  Rxe4 {[%clk 0:02:23]} 19. fxe4 {[%clk 0:01:30]}  Qb6 {[%clk 0:02:22]} 20. Qc2 {[%clk 0:01:14]}  Re8 {[%clk 0:02:13]} 21. Re1 {[%clk 0:01:09]}  a5 {[%clk 0:02:06]} 22. Qc6 {[%clk 0:01:06]}  Qxc6 {[%clk 0:01:57]} 23. Nxc6 {[%clk 0:01:06]}  Rxe4 {[%clk 0:01:52]} 24. Rd1 {[%clk 0:00:45]}  Re2 {[%clk 0:01:45]} 25. Nbxa5 {[%clk 0:00:39]}  Rxb2 {[%clk 0:01:41]} 26. Ne5 {[%clk 0:00:22]}  h6 {[%clk 0:01:32]} 27. Bf4 {[%clk 0:00:13]}  Nc5 {[%clk 0:01:22]} 28. Nac6 {[%clk 0:00:11]}  Ne6 {[%clk 0:01:18]} 29. Be3 {[%clk 0:00:08]}  Bf8 {[%clk 0:01:14]} 30. Kh1 {[%clk 0:00:03]}  Ne4 {[%clk 0:01:14]} 31. Kh2 {[%clk 0:00:02]}  Rc2 {[%clk 0:01:01]} 32. Nd8 {[%clk 0:00:02]}  Rc3 {[%clk 0:00:46]} 33. Nxe6 {[%clk 0:00:01]}  Rxe3 {[%clk 0:00:45]} 34. Nxf8 {[%clk 0:00:00]}  Kxf8 {[%clk 0:00:46]} 0-1


[Site "https://www.chess.com"]